[Event "85th Tata Steel Masters 2023"]
[Site "Wijk aan Zee"]
[Date "2023.01.25"]
[Round "10.7"]
[White "Van Foreest, Jorden"]
[Black "Keymer, Vincent"]
[Result "1/2-1/2"]
[ECO "C96"]
[WhiteElo "2681"]
[BlackElo "2696"]
[Annotator "TA"]
[PlyCount "191"]
[EventDate "2023.01.10"]
[EventType "tourn"]
[EventCountry "NED"]
[SourceTitle "playchess.com"]
[Source "ChessBase"]
[SourceQuality "1"]
[TimeControl "40/6000+30:30/3000+30:900+30"]

{[%evp 43,191,38,29,26,22,25,25,30,51,44,90,0,27,44,22,29,128,87,75,34,34,34,34,0,0,0,0,0,0,0,0,0,-4,-4,-4,-8,-8,-8,-8,-8,-8,-8,-8,-8,-8,-8,0,0,0,0,0,0,0,0,0,0,0,0,0,0,0,0,0,-14,-18,-285,-147,-300,-333,-285,-285,-294,-286,-286,-294,-461,-413,-407,-358,-358,-285,-285,-285,-285,-285,-285,-285,-285,-285,-285,-285,-285,-285,-285,-285,-285,-285,-285,-285,-285,-285,-285,-285,-285,-285,-285,0,0,0,0,0,0,0,0,0,0,0,0,0,0,0,0,0,0,0,0,0,0,0,0,0,0,0,0,0,0,0,-112,0,0,-87,-112,-112,-112,0,0,0,0,0,0]} 1. e4 {[%emt 0:00:05]} e5 {[%emt 0:00:04]} 2. Nf3 {[%emt 0:00:22]} Nc6 {[%emt 0:00:04]} 3. Bb5 {[%emt 0:00:12]} a6 {[%emt 0:00:04]} 4. Ba4 {[%emt 0:00:12]} Nf6 {[%emt 0:00:05]} 5. O-O {[%emt 0:00:28]} Be7 {[%emt 0:00:06]} 6. Re1 {[%emt 0:00:13]} b5 {[%emt 0:00:04]} 7. Bb3 {[%emt 0:00:05]} O-O {[%emt 0:00:05]} 8. d3 {[%emt 0:00:35]} d6 {[%emt 0:00:49]} 9. c3 {[%emt 0:00:13]} Na5 {[%emt 0:01:52]} 10. Bc2 {[%emt 0:00:20]} c5 {[%emt 0:00:08]} 11. h3 {[%emt 0:00:55]} Nc6 {[%emt 0:04:55]} 12. Nbd2 {[%emt 0:05:12]} h6 {[%emt 0:05:35]} 13. a4 {[%emt 0:02:26]} b4 {[%emt 0:14:13]} 14. d4 {[%emt 0:11:56]} bxc3 {[%emt 0:15:20]} 15. bxc3 {[%emt 0:00:10]} cxd4 {[%emt 0:00:06]} 16. cxd4 {[%emt 0:00:09]} exd4 {[%emt 0:02:01]} 17. Bb2 {[%emt 0:10:31]} Rb8 {[%emt 0:02:48]} 18. Nxd4 {[%emt 0:01:28]} Bd7 {[%emt 0:11:24]} 19. Nxc6 {[%emt 0:10:12]} Bxc6 {[%emt 0:00:28]} 20. Bd4 {[%emt 0:00:25]} Nd7 {[%emt 0:11:37]} 21. Nc4 {[%emt 0:13:41]} Rb4 {[%emt 0:04:50]} 22. Qe2 {[%emt 0:07:02]} (22. Qg4 Bf6 $17) 22... Bf6 {[%emt 0:13:40]} 23. Red1 {[%emt 0:02:33]} Bxd4 {[%emt 0:00:36]} 24. Rxd4 {[%emt 0:00:07]} Qg5 {[%emt 0:00:29]} (24... Qf6 25. e5 Nxe5 26. Nxe5 (26. Rxd6 $2 Nf3+ {[%mdl 64] Discovered Attack} 27. gxf3 Qxa1+ 28. Kg2 Bb7 $19) 26... Rxd4 27. Nxc6 $16) 25. Rdd1 {[%emt 0:05:57]} (25. Rxd6 Qc5 26. Rxc6 Qxc6 $17) 25... Ne5 {[%emt 0:08:09]} 26. Nxd6 {[%emt 0:06:40]} g6 {[%emt 0:00:11]} (26... a5 $14) 27. Rab1 {[%emt 0:01:12]} (27. Ra3 $16) 27... Rxb1 {[%emt 0:00:36]} 28. Rxb1 {[%emt 0:01:21]} Bd7 {[%emt 0:00:40]} 29. Rf1 {[%emt 0:03:55]} (29. Qxa6 $2 Bxh3 30. Kf1 (30. Qf1 {gets mated.} Nf3+ 31. Kh1 Bxg2+ 32. Qxg2 Qh5+) 30... Bxg2+ 31. Ke2 Rd8 $19) 29... Qf6 {[%emt 0:03:11]} (29... Nc6 $11) 30. Qd2 {[%emt 0:07:53]} (30. Qxa6 $2 {perishes.} Nf3+ 31. gxf3 Bxh3 $19) 30... g5 {[%emt 0:04:52]} 31. f4 {[%emt 0:07:40]} (31. Nf5 {simplifies} Bxf5 32. exf5 Kg7 33. Qe2) 31... gxf4 {[%emt 0:00:07]} 32. Rxf4 {[%emt 0:00:18]} Qg5 $1 {[%emt 0:00:52]} 33. Kh2 {[%emt 0:02:23]} Bxh3 {[%emt 0:02:08]} 34. Kxh3 {[%emt 0:01:45]} Rd8 $1 {[%emt 0:00:04]} 35. g3 {[%emt 0:01:16]} Qg6 {[%emt 0:00:16]} 36. Qd5 {[%emt 0:03:35]} Qxd6 {[%emt 0:00:27]} 37. Rf5 {[%emt 0:00:46]} Qxd5 {[%emt 0:00:55]} 38. exd5 {[%emt 0:00:02]} Rxd5 {[%emt 0:00:35]} 39. Bb3 {[%emt 0:00:04]} Rd3 {[%emt 0:00:23]} 40. Rxe5 {[%emt 0:02:48]} Rxb3 {[%emt 0:00:05]} 41. a5 {[%emt 0:53:18]} Kg7 {[%emt 0:53:26]} 42. Rc5 {[%emt 0:00:12]} Re3 {[%emt 0:01:10]} 43. Kh4 {[%emt 0:00:03]} Re6 {[%emt 0:00:00]} 44. g4 {[%emt 0:00:00]} Rg6 {[%emt 0:00:00]} 45. Kh5 {[%emt 0:00:00]} Rd6 {[%emt 0:00:00]} 46. g5 {[%emt 0:00:00]} hxg5 {[%emt 0:00:00]} 47. Kxg5 {[%emt 0:00:00]} Rf6 {[%emt 0:00:00]} 48. Kg4 {[%emt 0:00:00]} Kf8 {[%emt 0:00:00]} 49. Kg5 {[%emt 0:00:00]} Rd6 {[%emt 0:00:00]} 50. Kf5 {[%emt 0:00:00]} Ke7 {[%emt 0:00:00]} 51. Ke4 {[%emt 0:00:00]} Re6+ {[%emt 0:00:00]} 52. Kf4 {[%emt 0:00:00]} Kd7 {[%emt 0:00:00]} 53. Rf5 {[%emt 0:00:00]} f6 {[%emt 0:00:00]} 54. Rh5 $2 {[%emt 0:00:00][%mdl 8192]} (54. Rd5+ $1 $11 {and White is okay.} Kc6 55. Rd8) 54... Kc6 {[%emt 0:00:00]} ({Better is} 54... Re1 $19 {White must now prevent ...Kd6.} 55. Rh7+ Kc6) 55. Rf5 $2 {[%emt 0:00:00]} (55. Rh2 $17) 55... Kd6 $1 $19 {[%emt 0:00:00]} 56. Kf3 {[%emt 0:00:00]} Ke7 $1 {[%emt 0:00:00]} 57. Kf4 {[%emt 0:00:00]} Re1 {[%emt 0:00:00]} 58. Rh5 {[%emt 0:00:00]} Kd6 {[%emt 0:00:00]} 59. Rh2 {[%emt 0:00:00]} Re5 {[%emt 0:00:00]} 60. Rd2+ {[%emt 0:00:00]} Ke6 {[%emt 0:00:00]} 61. Ra2 {[%emt 0:00:00]} Rf5+ {[%emt 0:00:00]} 62. Kg4 {[%emt 0:00:00]} Rd5 {[%emt 0:00:00]} 63. Ra1 {[%emt 0:00:00]} Rd4+ {[%emt 0:00:00]} 64. Kh5 {[%emt 0:00:23]} Re4 {[%emt 0:00:00]} 65. Ra2 {[%emt 0:01:44]} Re1 {[%emt 0:00:44]} 66. Kg4 {[%emt 0:06:26]} f5+ {[%emt 0:03:18]} 67. Kf3 {[%emt 0:01:30]} Re5 {[%emt 0:03:15]} 68. Ra4 {[%emt 0:01:13]} Rb5 {[%emt 0:05:59]} 69. Kf4 {[%emt 0:00:21]} Kd6 {[%emt 0:00:05]} 70. Ra1 {[%emt 0:01:16]} Rc5 {[%emt 0:00:00]} 71. Rb1 {[%emt 0:03:26]} Rxa5 {[%emt 0:07:10]} 72. Rb6+ {[%emt 0:00:05]} Kc5 {[%emt 0:00:23]} 73. Rf6 {[%emt 0:03:05]} Kc4 {[%emt 0:02:17]} 74. Rc6+ {[%emt 0:04:36]} Kb5 $2 {[%emt 0:05:42]} (74... Kd5 $1 $19 75. Rc8 Ra1 76. Rd8+ Kc6 77. Rc8+ Kb7) 75. Rf6 $1 $11 {[%emt 0:01:00]} Ra4+ {[%emt 0:01:40]} 76. Kf3 $1 {[%emt 0:00:32]} Ra3+ {[%emt 0:00:07]} 77. Ke2 {[%emt 0:00:44]} Ra2+ {[%emt 0:00:03]} 78. Ke1 {[%emt 0:01:31]} Ra1+ {[%emt 0:01:48]} 79. Ke2 {[%emt 0:01:46]} Ra2+ {[%emt 0:00:47]} 80. Ke1 {[%emt 0:00:01]} Rc2 {[%emt 0:01:21]} ({Much worse is} 80... Ra1+ 81. Kd2 $15) 81. Rxf5+ {[%emt 0:00:09]} Kb4 {[%emt 0:00:02]} 82. Kd1 {[%emt 0:00:32]} Rc4 {[%emt 0:00:14]} 83. Rf8 {[%emt 0:00:33]} a5 {[%emt 0:00:09]} 84. Rb8+ {[%emt 0:00:04]} Ka3 {[%emt 0:00:04]} 85. Rb5 {[%emt 0:00:33]} a4 {[%emt 0:00:04]} 86. Kd2 {[%emt 0:00:07]} Ka2 {[%emt 0:00:09]} 87. Rb8 {[%emt 0:00:09]} Rh4 {[%emt 0:00:20]} 88. Kc2 {[%emt 0:00:19]} Rh2+ {[%emt 0:00:12]} 89. Kc1 {[%emt 0:00:05]} a3 {[%emt 0:00:17]} 90. Rb7 {[%emt 0:00:29]} (90. Rc8 $11 {keeps the balance.}) 90... Rb2 {[%emt 0:00:14]} (90... Re2 $17 91. Ra7 Rg2) 91. Rc7 $1 $11 {[%emt 0:00:14]} Rb6 {[%emt 0:00:22]} (91... Rb8 $11) 92. Rc2+ {[%emt 0:00:15] [#]} Ka1 $1 {[%emt 0:00:21]} 93. Rc3 {[%emt 0:00:28] [#]} Ka2 {[%emt 0:00:21]} ({Black should try} 93... Ra6 $1 $17 94. Rc5 Rh6) 94. Rc2+ $11 {[%emt 0:00:10]} Kb3 {[%emt 0:00:05]} 95. Kb1 {[%emt 0:00:05]} Rd6 {[%emt 0:00:16]} 96. Rb2+ {[%emt 0:00:05]} 1/2-1/2

[Event "85th Tata Steel Masters 2023"]
[Site "Wijk aan Zee"]
[Date "2023.01.27"]
[Round "11.1"]
[White "Giri, Anish"]
[Black "Abdusattorov, Nodirbek"]
[Result "1/2-1/2"]
[ECO "D20"]
[WhiteElo "2764"]
[BlackElo "2713"]
[Annotator "TA"]
[PlyCount "57"]
[EventDate "2023.01.10"]
[EventType "tourn"]
[EventCountry "NED"]
[SourceTitle "playchess.com"]
[Source "ChessBase"]
[SourceQuality "1"]
[TimeControl "40/6000+30:30/3000+30:900+30"]

{[%evp 9,57,33,47,8,7,7,0,0,1,0,5,4,6,-6,7,4,7,0,0,0,6,3,7,0,0,0,0,0,0,0,4,5,9,1,4,1,2,0,11,12,12,16,3,4,14,0,0,0,0,1]} 1. d4 {[%emt 0:00:03]} d5 {[%emt 0:00:20]} 2. c4 {[%emt 0:00:09]} dxc4 {[%emt 0:00:07]} 3. e4 {[%emt 0:01:01]} e5 {[%emt 0:00:06]} 4. Nf3 {[%emt 0:00:51]} Bb4+ {[%emt 0:00:17]} 5. Bd2 {[%emt 0:05:06]} Bxd2+ {[%emt 0:00:07]} 6. Qxd2 {[%emt 0:00:03] D20: Queen's Gambit Accepted: 3 e3 and 3 e4.} exd4 {[%emt 0:00:37] The position is equal.} 7. Nxd4 {[%emt 0:00:23]} Nf6 {[%emt 0:00:47]} 8. Nc3 {[%emt 0:02:03]} Qe7 {[%emt 0:00:45]} 9. O-O-O {[%emt 0:04:46] [#] Hoping for e5.} O-O {[%emt 0:00:04]} 10. f3 {[%emt 0:18:34]} c5 {[%emt 0:01:19] [#]} 11. Nc2 $146 {[%emt 0:02:20]} ({Predecessor:} 11. Nde2 Nc6 12. Nf4 Be6 13. Qd6 Qxd6 14. Rxd6 Rfd8 15. Rxd8+ Rxd8 16. Nxe6 fxe6 17. Bxc4 {½-½ Banikas,H (2571)-Balogh,C (2614) Olympiad-42 Baku 2016 (11.3)}) 11... Nc6 {[%emt 0:05:39]} 12. Bxc4 {[%emt 0:00:34]} Be6 {[%emt 0:00:43]} 13. Bxe6 {[%emt 0:00:56]} fxe6 {[%emt 0:04:26]} 14. Qd6 {[%emt 0:04:43]} Rad8 {[%emt 0:04:33]} 15. Qxe7 {[%emt 0:00:10]} Nxe7 {[%emt 0:00:04]} 16. Rxd8 {[%emt 0:09:02]} Rxd8 {[%emt 0:00:05]} 17. Rd1 {[%emt 0:00:02]} Rxd1+ {[%emt 0:02:29]} 18. Nxd1 $11 {[%emt 0:02:54][%mdl 4096] Endgame KNN-KNN} Kf7 {[%emt 0:02:57]} 19. b4 {[%emt 0:01:57]} cxb4 {[%emt 0:03:26]} 20. Nxb4 {[%emt 0:00:07]} e5 {[%emt 0:00:06]} 21. Ne3 {[%emt 0:07:06]} Ke6 {[%emt 0:02:58]} 22. Kc2 {[%emt 0:01:11]} Nd7 {[%emt 0:03:27]} 23. Kc3 {[%emt 0:04:09]} Nc5 {[%emt 0:01:30]} 24. Kc4 {[%emt 0:00:36]} Na4 {[%emt 0:03:44]} 25. Nd3 {[%emt 0:05:54] Black must now prevent Kb4.} Nb6+ {[%emt 0:06:45]} 26. Kb5 {[%emt 0:07:50] [#] aiming for Nc5+.} Nd7 {[%emt 0:01:16]} 27. Nc5+ {[%emt 0:03:19]} Nxc5 {[%emt 0:00:03]} 28. Kxc5 {[%emt 0:00:03]} g5 {[%emt 0:04:39]} 29. g3 {[%emt 0:16:52] A rather calm draw.   Weighted Error Value: White=0.06 (flawless) /Black=0.02 (flawless)} 1/2-1/2

[Event "85th Tata Steel Masters 2023"]
[Site "Wijk aan Zee"]
[Date "2023.01.27"]
[Round "11.2"]
[White "Carlsen, Magnus"]
[Black "So, Wesley"]
[Result "1/2-1/2"]
[ECO "E42"]
[WhiteElo "2859"]
[BlackElo "2760"]
[Annotator "TA"]
[PlyCount "116"]
[EventDate "2023.01.10"]
[EventType "tourn"]
[EventCountry "NED"]
[SourceTitle "playchess.com"]
[Source "ChessBase"]
[SourceQuality "1"]
[TimeControl "40/6000+30:30/3000+30:900+30"]

{[%evp 22,116,14,9,10,9,0,0,0,0,0,0,14,12,15,6,3,0,0,0,0,0,4,0,0,0,13,9,6,1,8,0,15,15,26,22,21,10,10,10,10,2,2,2,2,0,2,0,2,0,0,0,0,0,0,0,0,0,0,0,0,0,0,0,0,0,0,0,0,0,0,0,0,0,0,0,0,0,0,0,0,0,0,0,0,0,0,0,0,0,0,0,0,0,0,0,0]} 1. d4 {[%emt 0:02:59]} Nf6 {[%emt 0:00:13]} 2. c4 {[%emt 0:00:06]} e6 {[%emt 0:00:17]} 3. Nc3 {[%emt 0:00:12]} Bb4 {[%emt 0:00:36]} 4. e3 {[%emt 0:00:37][%cal Be2e3,Be3d4][%mdl 32]} c5 {[%emt 0:00:53]} 5. Nge2 {[%emt 0:06:16]} d5 {[%emt 0:00:21]} 6. a3 {[%emt 0:04:38]} Bxc3+ {[%emt 0:00:17]} 7. Nxc3 {[%emt 0:00:44]} cxd4 {[%emt 0:00:08]} 8. exd4 {[%emt 0:02:00]} dxc4 {[%emt 0:00:13]} 9. Bxc4 {[%emt 0:00:10]} Nc6 {[%emt 0:00:05]} 10. Be3 {[%emt 0:01:22]} O-O {[%emt 0:00:11]} 11. O-O {[%emt 0:03:09]} b6 {[%emt 0:00:10]} 12. d5 {[%emt 0:17:18]} exd5 {[%emt 0:02:28] E42: Nimzo-Indian: Rubinstein: 4...c5 5 Ne2.} 13. Nxd5 {[%emt 0:00:09]} Be6 {[%emt 0:00:41][%cal Rf6d5]} 14. Nxf6+ {[%emt 0:02:28]} Qxf6 {[%emt 0:00:07]} 15. Bxe6 {[%emt 0:00:53]} Qxe6 {[%emt 0:00:06]} 16. Rc1 {[%emt 0:03:08] [#]} Rac8 $146 {[%emt 0:09:35]} ({Predecessor:} 16... Ne7 17. Re1 Rfd8 18. Qa4 Qf6 19. b4 Nd5 20. h3 h6 21. Qa6 Qf5 22. Re2 Kh7 {0-1 Rubinstein,A-Ahues,C Liege Exposition Tournament 1930 (5)}) 17. Qa4 {[%emt 0:05:37]} Na5 {[%emt 0:04:41]} 18. Qf4 {[%emt 0:11:38]} Rxc1 {[%emt 0:10:43]} 19. Rxc1 {[%emt 0:00:17]} Rc8 {[%emt 0:00:06] [#] ( -> ...Rxc1+)} 20. Rxc8+ {[%emt 0:02:52]} Qxc8 $11 {[%emt 0:02:01][%mdl 4096] Endgame KQB-KQN} 21. h3 {[%emt 0:07:13]} Nc6 {[%emt 0:08:10]} 22. a4 {[%emt 0:09:04]} Qd7 {[%emt 0:25:03]} 23. Kh2 {[%emt 0:03:26]} Qe7 {[%emt 0:04:46]} 24. Qf3 {[%emt 0:11:33]} Qe8 {[%emt 0:06:30]} 25. b3 {[%emt 0:00:59]} h6 {[%emt 0:11:10]} 26. Qd5 {[%emt 0:02:51]} Qe6 {[%emt 0:05:00]} 27. Qxe6 {[%emt 0:01:40]} fxe6 {[%emt 0:00:02] KB-KN} 28. Kg3 {[%emt 0:00:18]} Kf7 {[%emt 0:00:10] The position is equal.} 29. Kf4 {[%emt 0:00:45]} e5+ {[%emt 0:03:08]} 30. Kf5 {[%emt 0:07:44]} h5 {[%emt 0:00:04]} 31. Bd2 {[%emt 0:02:19]} g6+ {[%emt 0:02:16]} 32. Ke4 {[%emt 0:00:06] [#] Hoping for Kd5.} Ke6 {[%emt 0:00:14]} 33. Bc3 {[%emt 0:00:28]} a6 {[%emt 0:00:10]} 34. f3 {[%emt 0:00:43]} b5 {[%emt 0:01:01]} 35. g3 {[%emt 0:01:21]} b4 {[%emt 0:04:06]} 36. Be1 {[%emt 0:00:16]} Nd4 {[%emt 0:00:38] ...a5 would be deadly.} 37. Bxb4 {[%emt 0:00:05]} Nxb3 {[%emt 0:00:03]} 38. a5 {[%emt 0:01:26]} Nd4 {[%emt 0:03:15]} 39. Bc3 {[%emt 0:00:08]} Nb3 {[%emt 0:00:20]} 40. Bb4 {[%emt 0:00:09]} Nd4 {[%emt 0:01:23]} 41. g4 {[%emt 0:20:35]} Ne2 {[%emt 0:09:47]} 42. Bd2 {[%emt 0:05:38]} Ng1 {[%emt 0:06:25]} 43. h4 {[%emt 0:00:12] Strongly threatening gxh5.} Ne2 {[%emt 0:00:04]} 44. Be1 {[%emt 0:01:21]} Nc1 {[%emt 0:07:18]} 45. gxh5 {[%emt 0:02:43]} gxh5 {[%emt 0:00:03]} 46. Bc3 {[%emt 0:00:18]} Nb3 {[%emt 0:01:08]} 47. f4 {[%emt 0:02:28]} Nc5+ {[%emt 0:01:00]} 48. Ke3 {[%emt 0:00:01]} Nd7 {[%emt 0:01:40]} 49. fxe5 {[%emt 0:01:42]} Nxe5 {[%emt 0:00:29]} 50. Kf4 {[%emt 0:01:22]} Ng6+ {[%emt 0:00:08]} 51. Kg5 {[%emt 0:00:08]} Nxh4 {[%emt 0:00:05]} 52. Kxh4 {[%emt 0:00:04]} Kd5 {[%emt 0:00:03]} 53. Kxh5 {[%emt 0:00:10] KB-KP} Kc4 {[%emt 0:00:02]} 54. Bg7 {[%emt 0:00:16]} Kb4 {[%emt 0:00:03]} 55. Bf6 {[%emt 0:00:06]} Kxa5 {[%emt 0:00:03]} 56. Bd8+ {[%emt 0:00:13]} Kb5 {[%emt 0:00:02]} 57. Kh6 {[%emt 0:00:09]} a5 {[%emt 0:00:02]} 58. Bxa5 {[%emt 0:00:07]} Kxa5 {[%emt 0:00:03] Not much happened in this game.   Weighted Error Value: White=0.01 (flawless) /Black=0.01 (flawless)} 1/2-1/2

[Event "85th Tata Steel Masters 2023"]
[Site "Wijk aan Zee"]
[Date "2023.01.27"]
[Round "11.3"]
[White "Aronian, Levon"]
[Black "Caruana, Fabiano"]
[Result "1/2-1/2"]
[ECO "D33"]
[WhiteElo "2735"]
[BlackElo "2766"]
[Annotator "TA"]
[PlyCount "77"]
[EventDate "2023.01.10"]
[EventType "tourn"]
[EventCountry "NED"]
[SourceTitle "playchess.com"]
[Source "ChessBase"]
[SourceQuality "1"]
[TimeControl "40/6000+30:30/3000+30:900+30"]

{[%evp 16,77,36,27,23,31,37,43,50,38,52,56,56,56,53,56,52,52,64,58,58,45,45,45,45,45,45,45,45,45,50,46,45,44,35,35,35,41,39,35,64,35,41,55,57,0,3,0,0,0,0,0,6,0,0,0,0,0,0,0,0,0,1,0]} 1. c4 {[%emt 0:00:09]} c5 {[%emt 0:00:21]} 2. Nf3 {[%emt 0:00:28]} Nf6 {[%emt 0:00:07]} 3. Nc3 {[%emt 0:01:19]} e6 {[%emt 0:00:47]} 4. g3 {[%emt 0:02:11]} d5 {[%emt 0:01:51]} 5. cxd5 {[%emt 0:00:21]} exd5 {[%emt 0:00:06]} 6. d4 {[%emt 0:00:17]} Nc6 {[%emt 0:00:09]} 7. Bg2 {[%emt 0:06:25]} cxd4 $1 {[%emt 0:01:40][%mdl 4] is now more promising than 7...Be7.} 8. Nxd4 {[%emt 0:00:05]} Bc5 {[%emt 0:00:07]} 9. Nb3 {[%emt 0:01:49][%csl LRc5,LRd5]} Bb6 {[%emt 0:00:07] D33: Tarrasch Defence: 6 g3 sidelines.} 10. O-O {[%emt 0:00:14][%cal Oa2a4]} (10. Bxd5 Nb4 11. Bf3 Qxd1+ 12. Kxd1 Ng4 13. Bxg4 Bxg4 $11) 10... d4 {[%emt 0:00:34]} 11. Na4 {[%emt 0:00:23]} O-O {[%emt 0:00:28] White is slightly better.} 12. Bg5 {[%emt 0:04:53]} h6 {[%emt 0:05:18]} 13. Bxf6 {[%emt 0:00:52]} Qxf6 {[%emt 0:00:06]} 14. Nxb6 {[%emt 0:01:27]} axb6 {[%emt 0:00:13]} 15. Bxc6 {[%emt 0:00:14]} bxc6 {[%emt 0:00:39]} 16. Qxd4 {[%emt 0:00:05]} ({Weaker is} 16. Nxd4 Rd8 17. e3 Ba6 $17) 16... Rd8 {[%emt 0:00:56]} 17. Qxf6 {[%emt 0:02:57]} gxf6 {[%emt 0:00:24]} 18. Rfc1 {[%emt 0:01:20]} Be6 {[%emt 0:02:37]} 19. Kf1 {[%emt 0:02:30]} ({Inferior is} 19. Rxc6 Bxb3 20. Rxb6 Rxa2 21. Rxa2 Bxa2 $17) 19... Ra4 {[%emt 0:02:13] [#]} 20. Ke1 $146 {[%emt 0:04:51]} ({Not} 20. Rxc6 Bxb3 21. Rxb6 Rxa2 22. Rxa2 Bxa2 $17) ({Predecessor:} 20. Rc3 c5 21. Ke1 c4 22. Nd2 b5 23. Rcc1 Rda8 24. a3 Kg7 25. f3 f5 26. Kf2 {1-0 Iniyan,P (2533)-Song,J (2391) Biel HTO 55th 2022 (5)}) 20... Rda8 $1 {[%emt 0:01:47] [#] ...Bxb3 would be deadly.} 21. Rc3 {[%emt 0:01:05]} Rxa2 {[%emt 0:00:40]} 22. Rxa2 {[%emt 0:00:07]} Rxa2 $14 {[%emt 0:00:05][%mdl 4096] Endgame KRB-KRN} 23. Nc1 {[%emt 0:02:10]} Rxb2 {[%emt 0:00:17]} 24. Rxc6 {[%emt 0:00:05]} Kg7 {[%emt 0:04:03]} 25. Nd3 {[%emt 0:01:29]} Rb1+ {[%emt 0:00:34]} 26. Kd2 {[%emt 0:00:05]} f5 {[%emt 0:02:15]} 27. Nf4 {[%emt 0:01:38]} Kf6 {[%emt 0:00:20]} 28. h4 {[%emt 0:03:27]} Ke7 {[%emt 0:02:15]} 29. Rc7+ {[%emt 0:02:58]} Kf6 {[%emt 0:00:58]} 30. h5 {[%emt 0:00:46]} (30. Rb7 $14) 30... Ba2 {[%emt 0:04:18] The position is equal.} 31. Kc2 {[%emt 0:03:41] [#] Ra7 is the strong threat.} Rf1 {[%emt 0:03:42]} 32. Rc6+ {[%emt 0:01:14]} Be6 {[%emt 0:00:12]} 33. Nd3 {[%emt 0:00:52]} Kg7 {[%emt 0:02:57]} 34. Rxb6 {[%emt 0:02:52]} Bc4 {[%emt 0:00:14]} 35. f3 {[%emt 0:03:12]} Bxd3+ $1 {[%emt 0:00:42]} 36. Kxd3 {[%emt 0:00:05]} Rg1 $1 {[%emt 0:00:10]} 37. Rb5 {[%emt 0:01:17]} Kf6 $1 {[%emt 0:00:05]} 38. Rb6+ {[%emt 0:00:06]} Kg7 {[%emt 0:00:04]} 39. Rb5 {[%emt 0:00:23] Weighted Error Value: White=0.04 (flawless) /Black=0.02 (flawless)} 1/2-1/2